[Event "3rd FIDE WCCC Rapid G12 2019"]
[Site "Minsk"]
[Date "2019.08.17"]
[Round "5.4"]
[White "Korovina, Yana"]
[Black "Ivanytska, Liudmyla"]
[Result "0-1"]
[ECO "B40"]
[WhiteElo "1602"]
[BlackElo "1539"]
[Annotator "NA"]
[PlyCount "94"]
[EventDate "2019.08.16"]
[EventType "swiss"]
[EventCountry "BLR"]
[SourceTitle "playchess.com"]
[Source "ChessBase"]
[SourceQuality "1"]
[TimeControl "600+5"]

1. e4 {[%emt 0:00:00]} c5 {[%emt 0:00:00]} 2. Nf3 {[%emt 0:00:04]} e6 {[%emt 0:00:00]} 3. d3 {[%emt 0:00:02]} a6 {[%emt 0:00:00]} 4. Nbd2 {[%emt 0:00:05]} b5 {[%emt 0:00:01]} 5. g3 {[%emt 0:00:01]} Bb7 {[%emt 0:00:01]} 6. Bg2 {[%emt 0:00:01]} d5 {[%emt 0:00:00]} 7. O-O {[%emt 0:00:06]} Ne7 {[%emt 0:00:08]} 8. Re1 {[%emt 0:00:15]} g6 {[%emt 0:00:01]} 9. e5 {[%emt 0:00:52]} Bg7 {[%emt 0:00:04]} 10. Nf1 {[%emt 0:00:02]} O-O {[%emt 0:00:13]} 11. Bg5 {[%emt 0:00:29]} h6 {[%emt 0:00:08]} 12. Bxe7 {[%emt 0:00:30]} Qxe7 {[%emt 0:00:01]} 13. Qd2 {[%emt 0:00:05]} Qc7 {[%emt 0:00:15]} 14. c3 {[%emt 0:00:24]} Nd7 {[%emt 0:00:41]} 15. d4 {[%emt 0:00:02]} Nb6 {[%emt 0:00:06]} 16. Ne3 {[%emt 0:00:15]} Nc4 {[%emt 0:00:33]} 17. Qc1 {[%emt 0:00:59]} Nxe3 {[%emt 0:00:40]} 18. Qxe3 {[%emt 0:00:10]} Rac8 {[%emt 0:00:07]} 19. Rac1 {[%emt 0:00:20]} Qb6 {[%emt 0:00:18]} 20. h4 {[%emt 0:01:07]} Rc6 {[%emt 0:00:13]} 21. Nd2 {[%emt 0:01:06]} Rfc8 {[%emt 0:00:21]} 22. Nb3 {[%emt 0:00:19]} c4 {[%emt 0:00:22]} 23. Nc5 {[%emt 0:00:20]} Qc7 {[%emt 0:00:09]} 24. Qd2 {[%emt 0:01:12]} Kh7 {[%emt 0:00:24]} 25. Nxb7 {[%emt 0:00:13]} Qxb7 26. Qf4 {[%emt 0:00:04]} Qe7 {[%emt 0:00:09]} 27. Rb1 {[%emt 0:00:12]} a5 {[%emt 0:00:09]} 28. Rec1 {[%emt 0:00:13]} h5 {[%emt 0:00:04]} 29. Re1 {[%emt 0:00:07]} b4 {[%emt 0:00:10]} 30. Red1 {[%emt 0:00:06]} Rb6 {[%emt 0:00:08]} 31. Qd2 {[%emt 0:00:08]} Rcb8 {[%emt 0:00:03]} 32. Qc2 {[%emt 0:00:10]} b3 {[%emt 0:00:14]} 33. axb3 {[%emt 0:00:13]} Rxb3 {[%emt 0:00:01]} 34. Bf3 {[%emt 0:00:11]} Kg8 {[%emt 0:00:17]} 35. Re1 {[%emt 0:00:04]} Qb7 {[%emt 0:00:10]} 36. Re2 {[%emt 0:00:18]} a4 {[%emt 0:00:00]} 37. Ra1 {[%emt 0:00:17]} Rxb2 {[%emt 0:01:45]} 38. Qxa4 {[%emt 0:00:01]} Rxe2 {[%emt 0:00:02]} 39. Bxe2 {[%emt 0:00:09]} Qb2 {[%emt 0:00:02]} 40. Bf1 {[%emt 0:00:18]} Qxc3 {[%emt 0:00:04]} 41. Qa7 {[%emt 0:00:02]} Rb2 {[%emt 0:00:30]} 42. Ra2 {[%emt 0:00:18]} Rxa2 {[%emt 0:00:10]} 43. Qxa2 {[%emt 0:00:01]} Qxd4 {[%emt 0:00:02]} 44. Qa8+ {[%emt 0:00:15]} Kh7 {[%emt 0:00:25]} 45. Qe8 {[%emt 0:00:03]} c3 {[%emt 0:00:03]} 46. Qc6 {[%emt 0:00:57]} Qd2 {[%emt 0:00:15]} 47. Kg2 {[%emt 0:00:16]} c2 {[%emt 0:00:04]} 0-1

[Event "3rd FIDE WCCC Rapid G12 2019"]
[Site "Minsk"]
[Date "2019.08.17"]
[Round "5.5"]
[White "Lomakina, Anzhelika"]
[Black "Zhapova, Yana"]
[Result "1-0"]
[ECO "B90"]
[WhiteElo "1732"]
[BlackElo "1809"]
[Annotator "NA"]
[PlyCount "139"]
[EventDate "2019.08.16"]
[EventType "swiss"]
[EventCountry "BLR"]
[SourceTitle "playchess.com"]
[Source "ChessBase"]
[SourceQuality "1"]
[TimeControl "600+5"]

1. e4 {[%emt 0:00:00]} c5 {[%emt 0:00:00]} 2. Nf3 {[%emt 0:00:00]} d6 {[%emt 0:00:00]} 3. d4 {[%emt 0:00:00]} cxd4 {[%emt 0:00:00]} 4. Nxd4 {[%emt 0:00:00]} Nf6 {[%emt 0:00:00]} 5. Nc3 {[%emt 0:00:00]} a6 {[%emt 0:00:01]} 6. h3 {[%emt 0:00:01]} e5 {[%emt 0:00:09]} 7. Nde2 {[%emt 0:00:02]} h5 {[%emt 0:00:01]} 8. g3 {[%emt 0:00:06]} Be6 {[%emt 0:00:40]} 9. Bg2 {[%emt 0:00:12]} Nbd7 {[%emt 0:00:37]} 10. Be3 {[%emt 0:00:06]} b5 {[%emt 0:00:23]} 11. O-O {[%emt 0:00:53]} Be7 {[%emt 0:00:52]} 12. Qd2 {[%emt 0:00:15]} Rc8 {[%emt 0:00:52]} 13. a4 {[%emt 0:01:42]} b4 {[%emt 0:00:52]} 14. Nd5 {[%emt 0:00:09]} Nxd5 {[%emt 0:00:13]} 15. exd5 {[%emt 0:00:02]} Bf5 {[%emt 0:00:01]} 16. Rac1 {[%emt 0:01:04]} a5 {[%emt 0:00:32]} 17. c3 {[%emt 0:00:11]} bxc3 {[%emt 0:01:03]} 18. Nxc3 {[%emt 0:00:50]} O-O {[%emt 0:00:02]} 19. Nb5 {[%emt 0:01:08]} Nf6 {[%emt 0:01:32]} 20. Rc6 {[%emt 0:02:36]} Ne4 {[%emt 0:01:04]} 21. Qe2 {[%emt 0:00:37]} Qd7 {[%emt 0:00:57]} 22. Rfc1 {[%emt 0:00:24]} Bg5 {[%emt 0:00:55]} 23. Bxe4 {[%emt 0:00:35]} Bxe4 {[%emt 0:00:24]} 24. Bxg5 {[%emt 0:00:15]} Bxd5 {[%emt 0:00:01]} 25. Rxd6 {[%emt 0:00:21]} Qb7 {[%emt 0:00:43]} 26. Kh2 {[%emt 0:00:23]} Rxc1 {[%emt 0:00:05]} 27. Bxc1 {[%emt 0:00:01]} Rc8 {[%emt 0:00:01]} 28. Be3 {[%emt 0:00:17]} Bc4 {[%emt 0:00:10]} 29. Qd1 {[%emt 0:00:04]} Bxb5 {[%emt 0:00:08]} 30. axb5 Qxb5 31. Rd8+ {[%emt 0:00:05]} Rxd8 {[%emt 0:00:01]} 32. Qxd8+ Kh7 33. Qd2 {[%emt 0:00:10]} a4 {[%emt 0:00:09]} 34. Qc2+ {[%emt 0:00:04]} Kg8 35. Qd2 {[%emt 0:00:10]} Kh7 {[%emt 0:00:11]} 36. Kg2 {[%emt 0:00:04]} Qb7+ {[%emt 0:00:01]} 37. Kg1 {[%emt 0:00:03]} Qb5 {[%emt 0:00:03]} 38. Qc2+ {[%emt 0:00:07]} Kg8 {[%emt 0:00:02]} 39. Qc8+ {[%emt 0:00:04]} Kh7 {[%emt 0:00:00]} 40. Qf5+ {[%emt 0:00:02]} Kg8 {[%emt 0:00:03]} 41. Qc2 {[%emt 0:00:14]} Qd7 {[%emt 0:00:08]} 42. Kh2 {[%emt 0:00:02]} Qb5 {[%emt 0:00:02]} 43. Bc5 {[%emt 0:00:02]} Qc6 {[%emt 0:00:18]} 44. Qc3 {[%emt 0:00:07]} Qd5 {[%emt 0:00:05]} 45. Ba3 {[%emt 0:00:06]} Qe6 {[%emt 0:00:15]} 46. Qb4 {[%emt 0:00:07]} Kh7 {[%emt 0:00:05]} 47. Qxa4 {[%emt 0:00:01]} Qb6 {[%emt 0:00:04]} 48. Qc2+ {[%emt 0:00:02]} Kg8 {[%emt 0:00:01]} 49. b4 {[%emt 0:00:06]} h4 {[%emt 0:00:04]} 50. Qc8+ {[%emt 0:00:08]} Kh7 {[%emt 0:00:01]} 51. Qf5+ {[%emt 0:00:01]} Kg8 {[%emt 0:00:01]} 52. g4 {[%emt 0:00:09]} e4 53. b5 {[%emt 0:00:05]} e3 {[%emt 0:00:12]} 54. Bc5 {[%emt 0:00:07]} Qc7+ {[%emt 0:00:04]} 55. Kg2 {[%emt 0:00:07]} e2 {[%emt 0:00:05]} 56. Qe4 {[%emt 0:00:05]} Qxc5 {[%emt 0:00:03]} 57. Qxe2 {[%emt 0:00:00]} Qd5+ {[%emt 0:00:03]} 58. Kg1 {[%emt 0:00:03]} Qc5 {[%emt 0:00:03]} 59. Qd3 {[%emt 0:00:07]} Qc1+ {[%emt 0:00:05]} 60. Kg2 {[%emt 0:00:03]} Qc5 {[%emt 0:00:02]} 61. Qd8+ {[%emt 0:00:03]} Kh7 {[%emt 0:00:01]} 62. Qxh4+ {[%emt 0:00:01]} Kg8 {[%emt 0:00:01]} 63. Qd8+ {[%emt 0:00:06]} Kh7 {[%emt 0:00:00]} 64. Qd7 {[%emt 0:00:04]} Kg8 {[%emt 0:00:11]} 65. Qc6 {[%emt 0:00:10]} Qd4 {[%emt 0:00:08]} 66. b6 {[%emt 0:00:06]} f5 {[%emt 0:00:17]} 67. b7 {[%emt 0:00:11]} fxg4 {[%emt 0:00:21]} 68. b8=Q+ {[%emt 0:00:03]} Kh7 {[%emt 0:00:02]} 69. Qc2+ {[%emt 0:00:05]} Kh6 {[%emt 0:00:04]} 70. Qh8+ {[%emt 0:00:02]} 1-0

[Event "3rd FIDE WCCC Rapid G12 2019"]
[Site "Minsk"]
[Date "2019.08.17"]
[Round "5.6"]
[White "Kaldarova, Ayaulym"]
[Black "Petrova, Elizaveta"]
[Result "1-0"]
[ECO "D02"]
[WhiteElo "1549"]
[BlackElo "1573"]
[Annotator "NA"]
[PlyCount "79"]
[EventDate "2019.08.16"]
[EventType "swiss"]
[EventCountry "BLR"]
[SourceTitle "playchess.com"]
[Source "ChessBase"]
[SourceQuality "1"]
[TimeControl "600+5"]

1. d4 {[%emt 0:00:00]} d5 {[%emt 0:00:00]} 2. Nf3 {[%emt 0:00:00]} Nf6 {[%emt 0:00:00]} 3. c4 {[%emt 0:00:00]} e6 {[%emt 0:00:01]} 4. e3 {[%emt 0:00:11]} Be7 {[%emt 0:00:09]} 5. Bd3 {[%emt 0:00:08]} O-O {[%emt 0:00:04]} 6. O-O {[%emt 0:00:03]} c5 {[%emt 0:00:26]} 7. b3 {[%emt 0:00:14]} Nc6 {[%emt 0:00:29]} 8. Bb2 {[%emt 0:00:32]} b6 {[%emt 0:00:13]} 9. Nbd2 {[%emt 0:00:08]} Bb7 10. Qe2 {[%emt 0:00:08]} Nb4 {[%emt 0:00:19]} 11. Bb1 {[%emt 0:01:11]} a5 {[%emt 0:00:56]} 12. Ne5 {[%emt 0:00:50]} a4 13. f4 {[%emt 0:00:09]} a3 {[%emt 0:01:02]} 14. Bc3 {[%emt 0:00:56]} Nc6 {[%emt 0:00:01]} 15. Nxc6 Bxc6 16. f5 {[%emt 0:00:29]} Rb8 {[%emt 0:01:42]} 17. Bd3 {[%emt 0:00:15]} g6 {[%emt 0:00:45]} 18. fxg6 fxg6 19. Nf3 {[%emt 0:00:42]} Nh5 {[%emt 0:00:33]} 20. Ne5 {[%emt 0:00:10]} Qd6 {[%emt 0:00:15]} 21. Qg4 {[%emt 0:01:07]} Ng7 {[%emt 0:00:08]} 22. Nxg6 {[%emt 0:01:44]} hxg6 {[%emt 0:00:17]} 23. Qxg6 {[%emt 0:00:01]} Bf6 {[%emt 0:02:10]} 24. Qh7+ {[%emt 0:00:14]} Kf7 {[%emt 0:00:02]} 25. Rxf6+ {[%emt 0:00:08]} Ke8 {[%emt 0:00:14]} 26. Qxg7 {[%emt 0:00:13]} Rxf6 {[%emt 0:00:47]} 27. Qxf6 {[%emt 0:00:01]} Rb7 {[%emt 0:00:13]} 28. Rf1 {[%emt 0:00:11]} Re7 {[%emt 0:00:08]} 29. Bg6+ {[%emt 0:00:22]} Kd7 {[%emt 0:00:05]} 30. dxc5 {[%emt 0:00:08]} Qxc5 {[%emt 0:00:08]} 31. Bd4 {[%emt 0:00:07]} Qd6 {[%emt 0:00:12]} 32. c5 {[%emt 0:00:03]} bxc5 {[%emt 0:00:08]} 33. Be5 {[%emt 0:00:02]} Bb5 {[%emt 0:00:03]} 34. Bxd6 {[%emt 0:00:03]} Kxd6 {[%emt 0:00:01]} 35. Rd1 {[%emt 0:00:09]} Be2 {[%emt 0:00:05]} 36. Rd2 {[%emt 0:00:02]} c4 {[%emt 0:00:03]} 37. Rxe2 {[%emt 0:00:05]} cxb3 38. axb3 {[%emt 0:00:01]} Ra7 {[%emt 0:00:05]} 39. Ra2 {[%emt 0:00:06]} Kc5 {[%emt 0:00:05]} 40. Qd4+ {[%emt 0:00:03]} 1-0

[Event "3rd FIDE WCCC Rapid G12 2019"]
[Site "Minsk"]
[Date "2019.08.17"]
[Round "6.1"]
[White "Shubenkova, Veronika"]
[Black "Komissarova, Soigina"]
[Result "1/2-1/2"]
[ECO "D02"]
[WhiteElo "1740"]
[BlackElo "1663"]
[Annotator "NA"]
[PlyCount "115"]
[EventDate "2019.08.16"]
[EventType "swiss"]
[EventCountry "BLR"]
[SourceTitle "playchess.com"]
[Source "ChessBase"]
[SourceQuality "1"]
[TimeControl "600+5"]

1. d4 {[%emt 0:00:00]} d5 {[%emt 0:00:00]} 2. Nf3 {[%emt 0:00:00]} Bf5 {[%emt 0:00:00]} 3. e3 {[%emt 0:00:05]} Nf6 {[%emt 0:00:05]} 4. c4 {[%emt 0:00:03]} e6 {[%emt 0:00:05]} 5. Nc3 {[%emt 0:00:01]} c6 {[%emt 0:00:09]} 6. Bd3 {[%emt 0:00:15]} Bxd3 {[%emt 0:00:18]} 7. Qxd3 {[%emt 0:00:01]} Bd6 {[%emt 0:00:05]} 8. O-O {[%emt 0:00:04]} O-O {[%emt 0:00:02]} 9. e4 {[%emt 0:00:16]} dxe4 {[%emt 0:00:02]} 10. Nxe4 Nxe4 {[%emt 0:00:02]} 11. Qxe4 {[%emt 0:00:03]} Nd7 {[%emt 0:00:02]} 12. Bg5 {[%emt 0:00:05]} Be7 {[%emt 0:00:36]} 13. Bxe7 {[%emt 0:01:08]} Qxe7 {[%emt 0:00:02]} 14. Rfe1 {[%emt 0:00:03]} Nf6 {[%emt 0:00:03]} 15. Qc2 {[%emt 0:00:07]} Rfd8 {[%emt 0:00:23]} 16. Rad1 {[%emt 0:00:04]} h6 {[%emt 0:00:20]} 17. Ne5 {[%emt 0:00:08]} Rac8 {[%emt 0:00:13]} 18. Re3 {[%emt 0:00:17]} Qc7 {[%emt 0:00:50]} 19. c5 {[%emt 0:00:32]} Rd5 {[%emt 0:00:11]} 20. Nc4 {[%emt 0:00:59]} Rcd8 {[%emt 0:00:05]} 21. Nd6 {[%emt 0:00:40]} b6 {[%emt 0:00:19]} 22. b4 {[%emt 0:00:57]} Ne8 {[%emt 0:01:02]} 23. Nxe8 {[%emt 0:00:32]} Rxe8 {[%emt 0:00:03]} 24. Rc3 {[%emt 0:01:07]} Red8 {[%emt 0:02:14]} 25. Rcd3 {[%emt 0:00:41]} bxc5 {[%emt 0:01:40]} 26. bxc5 {[%emt 0:01:12]} Rb8 {[%emt 0:00:34]} 27. g3 {[%emt 0:00:07]} e5 {[%emt 0:00:08]} 28. dxe5 {[%emt 0:00:38]} Rxe5 {[%emt 0:00:02]} 29. Qc4 {[%emt 0:00:23]} Qa5 {[%emt 0:01:05]} 30. Rd7 {[%emt 0:00:15]} Rf8 {[%emt 0:00:03]} 31. Rc1 {[%emt 0:00:10]} Qa3 {[%emt 0:00:37]} 32. Qc3 {[%emt 0:00:23]} Qxc3 {[%emt 0:00:50]} 33. Rxc3 {[%emt 0:00:00]} Ra8 {[%emt 0:00:04]} 34. Rc7 {[%emt 0:00:11]} Re6 {[%emt 0:00:01]} 35. Rd3 {[%emt 0:00:03]} a5 {[%emt 0:00:11]} 36. Rdd7 {[%emt 0:00:05]} Rf6 {[%emt 0:00:09]} 37. Ra7 {[%emt 0:00:31]} Re8 {[%emt 0:00:04]} 38. Rxa5 Re1+ {[%emt 0:00:04]} 39. Kg2 {[%emt 0:00:31]} Re2 {[%emt 0:00:01]} 40. Ra8+ {[%emt 0:00:14]} Kh7 {[%emt 0:00:01]} 41. Raa7 {[%emt 0:00:01]} Rfxf2+ {[%emt 0:00:08]} 42. Kg1 {[%emt 0:00:03]} Rg2+ {[%emt 0:00:18]} 43. Kf1 {[%emt 0:00:03]} Rgf2+ {[%emt 0:00:01]} 44. Kg1 {[%emt 0:00:02]} Rxa2 {[%emt 0:00:08]} 45. Rac7 {[%emt 0:00:06]} Rfc2 {[%emt 0:00:03]} 46. Rxf7 {[%emt 0:00:08]} Ra1+ {[%emt 0:00:09]} 47. Rf1 {[%emt 0:00:02]} Rxf1+ {[%emt 0:00:02]} 48. Kxf1 {[%emt 0:00:02]} Rxc5 {[%emt 0:00:01]} 49. Kf2 {[%emt 0:00:04]} Kg6 {[%emt 0:00:03]} 50. Kf3 {[%emt 0:00:02]} Kf6 {[%emt 0:00:02]} 51. h4 {[%emt 0:00:02]} g6 {[%emt 0:00:03]} 52. g4 {[%emt 0:00:02]} Rc3+ {[%emt 0:00:06]} 53. Kf4 {[%emt 0:00:12]} Rc1 {[%emt 0:00:10]} 54. g5+ {[%emt 0:00:06]} hxg5+ {[%emt 0:00:02]} 55. hxg5+ {[%emt 0:00:01]} Ke6 {[%emt 0:00:01]} 56. Rg7 {[%emt 0:00:04]} Rf1+ {[%emt 0:00:02]} 57. Kg4 {[%emt 0:00:05]} Rg1+ {[%emt 0:00:16]} 58. Kf4 {[%emt 0:00:01]} 1/2-1/2

[Event "3rd FIDE WCCC Rapid G12 2019"]
[Site "Minsk"]
[Date "2019.08.17"]
[Round "6.2"]
[White "Lomakina, Anzhelika"]
[Black "Kirdyashkina, Ekaterina"]
[Result "0-1"]
[ECO "C55"]
[WhiteElo "1732"]
[BlackElo "1691"]
[Annotator "NA"]
[PlyCount "60"]
[EventDate "2019.08.16"]
[EventType "swiss"]
[EventCountry "BLR"]
[SourceTitle "playchess.com"]
[Source "ChessBase"]
[SourceQuality "1"]
[TimeControl "600+5"]

1. e4 {[%emt 0:00:00]} e5 {[%emt 0:00:00]} 2. Nf3 {[%emt 0:00:00]} Nc6 {[%emt 0:00:00]} 3. d4 {[%emt 0:00:00]} exd4 {[%emt 0:00:02]} 4. Bc4 {[%emt 0:00:01]} Nf6 {[%emt 0:00:02]} 5. e5 {[%emt 0:00:02]} d5 {[%emt 0:00:02]} 6. Bb5 {[%emt 0:00:02]} Ne4 {[%emt 0:00:09]} 7. Nxd4 {[%emt 0:00:02]} Bd7 {[%emt 0:00:01]} 8. Bxc6 {[%emt 0:00:01]} bxc6 {[%emt 0:00:02]} 9. O-O {[%emt 0:00:03]} Be7 {[%emt 0:00:04]} 10. f3 {[%emt 0:00:35]} Nc5 {[%emt 0:00:03]} 11. Be3 {[%emt 0:00:35]} O-O {[%emt 0:00:15]} 12. f4 {[%emt 0:00:25]} Ne4 {[%emt 0:00:47]} 13. Nd2 {[%emt 0:00:04]} c5 {[%emt 0:00:20]} 14. N4f3 {[%emt 0:00:11]} Nxd2 {[%emt 0:00:06]} 15. Qxd2 {[%emt 0:00:02]} d4 {[%emt 0:00:00]} 16. Bf2 {[%emt 0:00:01]} Bc6 {[%emt 0:00:01]} 17. Bg3 {[%emt 0:00:48]} Qd5 {[%emt 0:00:10]} 18. b3 {[%emt 0:02:06]} Rad8 {[%emt 0:00:06]} 19. Qa5 {[%emt 0:00:25]} f6 {[%emt 0:01:21]} 20. Qxc7 {[%emt 0:01:49]} Rd7 {[%emt 0:00:01]} 21. Qa5 {[%emt 0:00:13]} fxe5 {[%emt 0:00:01]} 22. fxe5 {[%emt 0:00:14]} Bg5 {[%emt 0:00:40]} 23. Rad1 {[%emt 0:01:10]} Qe4 {[%emt 0:00:23]} 24. Qxc5 {[%emt 0:01:19]} Be3+ {[%emt 0:00:02]} 25. Kh1 {[%emt 0:00:33]} Rxf3 {[%emt 0:00:08]} 26. Qc4+ {[%emt 0:00:50]} Rdf7 {[%emt 0:00:03]} 27. Qe2 {[%emt 0:00:35]} Rf2 {[%emt 0:00:05]} 28. Rxf2 {[%emt 0:00:06]} Rxf2 {[%emt 0:00:02]} 29. Qc4+ {[%emt 0:00:03]} Bd5 {[%emt 0:00:08]} 30. Qc8+ {[%emt 0:00:06]} Rf8 {[%emt 0:00:01]} 0-1

[Event "3rd FIDE WCCC Rapid G12 2019"]
[Site "Minsk"]
[Date "2019.08.17"]
[Round "6.3"]
[White "Ivanytska, Liudmyla"]
[Black "Vlasova, Olesia"]
[Result "0-1"]
[ECO "B34"]
[WhiteElo "1539"]
[BlackElo "1799"]
[Annotator "NA"]
[PlyCount "190"]
[EventDate "2019.08.16"]
[EventType "swiss"]
[EventCountry "BLR"]
[SourceTitle "playchess.com"]
[Source "ChessBase"]
[SourceQuality "1"]
[TimeControl "600+5"]

1. e4 {[%emt 0:00:00]} c5 {[%emt 0:00:00]} 2. Nf3 {[%emt 0:00:00]} Nc6 {[%emt 0:00:00]} 3. d4 {[%emt 0:00:00]} cxd4 {[%emt 0:00:00]} 4. Nxd4 {[%emt 0:00:00]} g6 {[%emt 0:00:00]} 5. Nc3 {[%emt 0:00:05]} Bg7 {[%emt 0:00:01]} 6. Be3 {[%emt 0:00:01]} Nf6 {[%emt 0:00:01]} 7. Qd2 {[%emt 0:00:02]} O-O {[%emt 0:00:02]} 8. f3 {[%emt 0:00:04]} d5 {[%emt 0:00:02]} 9. Nxc6 {[%emt 0:00:37]} bxc6 {[%emt 0:00:02]} 10. Bc5 {[%emt 0:00:19]} Re8 {[%emt 0:01:42]} 11. O-O-O {[%emt 0:00:13]} Qa5 {[%emt 0:00:38]} 12. Be3 {[%emt 0:00:27]} Rb8 {[%emt 0:00:42]} 13. e5 {[%emt 0:00:41]} Nd7 {[%emt 0:00:37]} 14. f4 {[%emt 0:00:05]} Qb4 {[%emt 0:00:32]} 15. b3 {[%emt 0:00:13]} Qa3+ {[%emt 0:02:04]} 16. Kb1 {[%emt 0:00:01]} Nb6 {[%emt 0:00:25]} 17. Qc1 {[%emt 0:00:20]} Qa5 {[%emt 0:00:22]} 18. Qb2 {[%emt 0:00:25]} Nc4 {[%emt 0:00:47]} 19. Bxc4 dxc4 20. Na4 {[%emt 0:00:37]} cxb3 {[%emt 0:00:20]} 21. axb3 {[%emt 0:00:04]} Bf5 {[%emt 0:00:28]} 22. Kc1 {[%emt 0:00:42]} Rb7 {[%emt 0:00:24]} 23. Qc3 {[%emt 0:00:03]} Qc7 {[%emt 0:00:40]} 24. Nc5 {[%emt 0:00:06]} Rb5 {[%emt 0:00:19]} 25. Na4 Reb8 {[%emt 0:00:20]} 26. Bc5 {[%emt 0:00:48]} f6 {[%emt 0:00:43]} 27. Qc4+ {[%emt 0:00:29]} Kh8 {[%emt 0:00:09]} 28. Qf7 {[%emt 0:00:09]} fxe5 {[%emt 0:00:10]} 29. Bd6 {[%emt 0:00:27]} Qa5 {[%emt 0:00:30]} 30. Bxb8 Rxb8 {[%emt 0:00:01]} 31. Qxe7 {[%emt 0:00:22]} exf4 {[%emt 0:00:06]} 32. Qc5 {[%emt 0:00:08]} Qc7 {[%emt 0:00:18]} 33. Qd6 {[%emt 0:00:04]} Qc8 {[%emt 0:00:10]} 34. Qxf4 {[%emt 0:00:15]} Qf8 {[%emt 0:00:00]} 35. Qd6 {[%emt 0:00:06]} Bh6+ {[%emt 0:00:02]} 36. Kb2 {[%emt 0:00:05]} Qg7+ {[%emt 0:00:06]} 37. Nc3 {[%emt 0:00:12]} Rg8 {[%emt 0:00:05]} 38. Qxc6 Rc8 {[%emt 0:00:15]} 39. Qf3 {[%emt 0:00:09]} Bg5 {[%emt 0:00:05]} 40. g4 {[%emt 0:00:42]} Bf6 {[%emt 0:00:00]} 41. gxf5 {[%emt 0:00:03]} Rxc3 {[%emt 0:00:05]} 42. Rd8+ {[%emt 0:00:01]} Bxd8 {[%emt 0:00:02]} 43. Qxc3 {[%emt 0:00:01]} Bf6 {[%emt 0:00:00]} 44. Qxf6 Qxf6+ {[%emt 0:00:01]} 45. Kb1 {[%emt 0:00:09]} Qxf5 {[%emt 0:00:04]} 46. Rd1 {[%emt 0:00:04]} a5 {[%emt 0:00:03]} 47. Rd2 {[%emt 0:00:09]} Kg7 {[%emt 0:00:04]} 48. Kb2 {[%emt 0:00:02]} Qf4 {[%emt 0:00:10]} 49. Re2 {[%emt 0:00:05]} g5 {[%emt 0:00:07]} 50. c4 {[%emt 0:00:02]} h5 {[%emt 0:00:06]} 51. Rc2 {[%emt 0:00:01]} g4 {[%emt 0:00:03]} 52. c5 {[%emt 0:00:01]} g3 {[%emt 0:00:11]} 53. hxg3 {[%emt 0:00:05]} Qxg3 {[%emt 0:00:02]} 54. c6 {[%emt 0:00:01]} Qc7 {[%emt 0:00:03]} 55. Rc3 {[%emt 0:00:26]} Kf6 {[%emt 0:00:09]} 56. Ka3 {[%emt 0:00:07]} Ke5 {[%emt 0:00:06]} 57. Rc5+ {[%emt 0:00:04]} Kd6 {[%emt 0:00:03]} 58. Rxh5 {[%emt 0:00:02]} Kxc6 {[%emt 0:00:03]} 59. Ka2 {[%emt 0:00:17]} Kb7 {[%emt 0:00:10]} 60. Rd5 {[%emt 0:00:34]} Qc2+ {[%emt 0:00:04]} 61. Ka3 {[%emt 0:00:03]} Qc1+ {[%emt 0:00:06]} 62. Ka2 {[%emt 0:00:03]} Qc3 {[%emt 0:00:10]} 63. Rb5+ {[%emt 0:00:22]} Ka6 {[%emt 0:00:01]} 64. Rd5 {[%emt 0:00:03]} Kb6 {[%emt 0:00:04]} 65. Rh5 {[%emt 0:00:22]} Qd2+ {[%emt 0:00:10]} 66. Ka3 {[%emt 0:00:01]} Qd6+ {[%emt 0:00:03]} 67. Ka2 {[%emt 0:00:09]} Qc6 {[%emt 0:00:02]} 68. Ka3 {[%emt 0:00:20]} Qg6 {[%emt 0:00:03]} 69. Rh1 {[%emt 0:00:12]} Qd6+ {[%emt 0:00:05]} 70. Kb2 {[%emt 0:00:05]} a4 {[%emt 0:00:03]} 71. Rb1 {[%emt 0:00:10]} Qb4 {[%emt 0:00:07]} 72. Ka2 {[%emt 0:00:02]} a3 {[%emt 0:00:06]} 73. Rh1 {[%emt 0:00:12]} Qc5 {[%emt 0:00:06]} 74. Ra1 {[%emt 0:00:19]} Qc3 {[%emt 0:00:08]} 75. Rb1 {[%emt 0:00:07]} Qc2+ {[%emt 0:00:02]} 76. Ka1 {[%emt 0:00:01]} Kb5 {[%emt 0:00:06]} 77. b4 {[%emt 0:00:02]} Ka4 {[%emt 0:00:09]} 78. b5 {[%emt 0:00:01]} Qc3+ {[%emt 0:00:06]} 79. Ka2 {[%emt 0:00:03]} Qc4+ {[%emt 0:00:07]} 80. Ka1 {[%emt 0:00:02]} Qc3+ {[%emt 0:00:04]} 81. Ka2 {[%emt 0:00:03]} Qc2+ {[%emt 0:00:00]} 82. Ka1 {[%emt 0:00:03]} a2 {[%emt 0:00:11]} 83. Rb2 {[%emt 0:00:01]} Qc3 {[%emt 0:00:03]} 84. Kxa2 {[%emt 0:00:02]} Qa3+ {[%emt 0:00:03]} 85. Kb1 {[%emt 0:00:02]} Qd3+ {[%emt 0:00:02]} 86. Ka2 {[%emt 0:00:01]} Qc4+ {[%emt 0:00:03]} 87. Kb1 {[%emt 0:00:18]} Ka3 {[%emt 0:00:02]} 88. Rc2 {[%emt 0:00:13]} Qxb5+ {[%emt 0:00:04]} 89. Kc1 {[%emt 0:00:01]} Qg5+ {[%emt 0:00:16]} 90. Kd1 {[%emt 0:00:04]} Kb3 {[%emt 0:00:03]} 91. Rd2 {[%emt 0:00:09]} Qg4+ {[%emt 0:00:05]} 92. Ke1 {[%emt 0:00:06]} Kc3 {[%emt 0:00:03]} 93. Rf2 {[%emt 0:00:03]} Kd3 {[%emt 0:00:09]} 94. Kf1 {[%emt 0:00:01]} Ke3 {[%emt 0:00:03]} 95. Rg2 {[%emt 0:00:04]} Qd1# {[%emt 0:00:04]} 0-1